Cogmind - Beta 16.1 @@@ ROGUE MODE // 2026.02.16 @ 14:47:54 Player: Gamma Result: Destroyed by B-90 Cyclops with Nova Cannon Performance ------------- Evolutions (8) 4000 Regions Visited (18) 3600 Robots Destroyed (185) 925 Value Destroyed (8234) 8234 Prototype IDs (8) 160 Alien Tech Used (0) 0 Bonus (3443) 3443 TOTAL SCORE: 20362 Bonus ------- High Alert Combat Kills 46 Follower Combat Kills 880 Met Zhirov 300 Met R17 at Cetus 500 Met R17 at Research 2000 Friendly Fire -283 Cogmind --------- Core Integrity 0/1450 Matter 190/300 Energy 77/100 System Corruption 16% Temperature Critical (877) Movement Core (50) Location -2/Research Parts ------- > --- POWER (3) -------- (None) > --- PROPULSION (5) --- (None) > --- UTILITY (11) ----- Advanced Signal Interpreter Advanced Melee Analysis Suite Improved Hacking Suite > --- WEAPON (4) ------- (None) > --- INVENTORY (5) ---- Improved Force Field Mini Drone Bay (2/3) Heavy Laser Enhanced Gauss Cannon Peak State ------------ > --- POWER ------------ Micro Fission Core Mini Fusion Reactor > --- PROPULSION ------- Flexi-carbon Leg Flexi-carbon Leg Flexi-carbon Leg Myomer Leg Improved Thunder Leg > --- UTILITY ---------- Large Storage Unit Long-range Sensor Array Advanced Signal Interpreter Advanced Melee Analysis Suite Advanced Melee Analysis Suite Advanced Melee Analysis Suite Centrium Medium Armor Plating Centrium Medium Armor Plating Improved Hacking Suite System Shield Mini Drone Bay > --- WEAPON ----------- Quantum Rifle Quantum Rifle Great Maul Spear > --- INVENTORY -------- Light Particle Reactor Myomer Leg Myomer Leg Improved Cloaking Device Centrium Medium Armor Plating Centrium Medium Armor Plating Improved Force Field Improved Remote Shield Long-range Tractor Beam Heavy Laser Beamcaster Enhanced Gauss Cannon Micro-nuke Launcher Micro-nuke Launcher [Rating: 136] Favorites ----------- Power Micro Nuclear Core Engine Improved Deuterium Engine Power Core Micro Nuclear Core Reactor Quantum Reactor Propulsion Aluminum Leg Treads Light Treads Leg Aluminum Leg Hover Unit Improved Airjet Utility Large Storage Unit Device Improved Heat Sink Storage Large Storage Unit Processor Advanced Targeting Computer Hackware Improved Hacking Suite Protection Centrium Medium Armor Plating Weapon Shock Rifle Energy Gun Shock Rifle Energy Cannon Heavy Plasma Cannon Ballistic Gun KE Penetrator Ballistic Cannon Assault Cannon Launcher Heavy Rocket Launcher Special Weapon Remote Datajack Impact Weapon Great Maul Piercing Weapon Spear Build | -11 -10 -10 -9 -8 -7 -7 -7 -6 -5 -5 -5 -5 -5 -5 -5 -4 -3 -2 ------- Run | Yrd Mat Min Mat Mat Fac Low Low Fac Fac Was Fac Ext Cet Arc Hub Fac Res Res Slots Evolved 16 | . . . 2 2 2 . . 2 2 . . . . . . 2 2 2 Power 2 | . . . . . . . . . . . . . . . . 1 . 1 Propulsion 3 | . . . 2 . . . . . 1 . . . . . . . . . Utility 9 | . . . . 1 2 . . 2 . . . . . . . 1 2 1 Weapon 2 | . . . . 1 . . . . 1 . . . . . . . . . Parts Attached 178 | 7 10 3 9 20 23 3 4 19 2 2 7 15 9 . 5 18 16 6 Power 14 | 1 2 . 1 1 . 1 . . . 1 . . 2 . . 2 3 . Engine 7 | 1 2 . 1 . . 1 . . . 1 . . . . . 1 . . Core 3 | . . . . 1 . . . . . . . . 1 . . . 1 . Reactor 4 | . . . . . . . . . . . . . 1 . . 1 2 . Propulsion 50 | 2 2 . 5 6 4 1 . 9 . . 3 5 3 . 1 6 2 1 Treads 1 | . 1 . . . . . . . . . . . . . . . . . Leg 48 | 2 1 . 5 6 4 1 . 9 . . 2 5 3 . 1 6 2 1 Wheel . | . . . . . . . . . . . . . . . . . . . Hover 1 | . . . . . . . . . . . 1 . . . . . . . Flight . | . . . . . . . . . . . . . . . . . . . Utility 62 | 1 5 1 . 6 8 . 3 8 1 . 2 5 2 . 1 9 8 2 Device 26 | . 4 1 . 2 1 . 1 4 . . 2 2 . . 1 4 4 . Storage 5 | 1 1 . . . 1 . . 1 . . . . . . . . 1 . Processor 11 | . . . . 1 4 . 1 1 . . . . . . . 4 . . Hackware 2 | . . . . . . . . . 1 . . . . . . . 1 . Protection 18 | . . . . 3 2 . 1 2 . . . 3 2 . . 1 2 2 Artifact . | . . . . . . . . . . . . . . . . . . . Weapon 52 | 3 1 2 3 7 11 1 1 2 1 1 2 5 2 . 3 1 3 3 Energy Gun 23 | 2 . . 1 4 8 . 1 . . . 1 3 1 . . . 2 . Energy Cannon 2 | . . . . . . . . 1 . 1 . . . . . . . . Ballistic Gun 12 | 1 . 1 1 2 1 . . 1 . . 1 2 1 . . 1 . . Ballistic Cannon 7 | . 1 . 1 1 1 . . . . . . . . . 2 . . 1 Launcher 5 | . . 1 . . 1 1 . . . . . . . . . . . 2 Special Weapon 1 | . . . . . . . . . 1 . . . . . . . . . Impact Weapon 1 | . . . . . . . . . . . . . . . 1 . . . Slashing Weapon . | . . . . . . . . . . . . . . . . . . . Piercing Weapon 1 | . . . . . . . . . . . . . . . . . 1 . Special Melee Weapon . | . . . . . . . . . . . . . . . . . . . Unidentified Prototypes 6 | . . . . . . . . . . . 2 . 2 . . . 2 . Corrupted Parts 5 | . . . . 1 . . . . . . . . . . . 4 . . System Corruption 19 | . . . . 2 . . . . . . . . . . . 17 . . Parts Lost 75 | . 2 . 5 7 3 . 1 6 . 3 3 3 6 . 4 10 1 21 Power 7 | . 1 . . . . . . . . 1 . . 1 . . 1 1 2 Propulsion 27 | . 1 . 3 3 . . . 1 . 1 . 2 3 . 2 4 . 7 Utility 20 | . . . . 2 1 . 1 4 . . 1 . 1 . . 4 . 6 Weapon 21 | . . . 2 2 2 . . 1 . 1 2 1 1 . 2 1 . 6 Highest Loss Streak 19 | . 1 . 5 7 2 . 1 2 . 3 2 2 6 . 3 5 1 19 To Critical Strikes 1 | . . . . . . . . . . . . . 1 . . . . . Average Backups 13 | 2 7 14 12 13 14 15 14 13 13 14 14 14 13 15 14 14 14 13 Power . | . . . 1 1 1 1 1 1 1 . . 1 . 1 1 . . . Propulsion 2 | 1 3 3 . 1 2 3 3 2 2 3 3 3 1 1 . 2 1 1 Utility 3 | . . 1 2 1 2 4 3 3 4 4 4 4 4 5 5 5 6 5 Weapon 6 | . 4 9 7 9 8 7 7 6 6 6 6 5 7 8 7 6 5 4 Tool/Special . | . . . . . . . . . . . . . . . . . . . Unused Backups 37 | . 6 1 . 9 6 . . 6 . . 4 . 1 . . . 2 2 Power 3 | . 1 . . 1 . . . 1 . . . . . . . . . . Propulsion 14 | . 3 . . . 4 . . 2 . . 4 . . . . . 1 . Utility 7 | . . . . 3 . . . 2 . . . . 1 . . . 1 . Weapon 13 | . 2 1 . 5 2 . . 1 . . . . . . . . . 2 Tool/Special . | . . . . . . . . . . . . . . . . . . . Average Slot Usage (%) 96 | . 98 100 88 99 99 100 100 97 91 85 96 98 99 100 99 84 97 87 Engine 4 | . 13 14 11 1 . . 7 6 5 4 5 5 . . . 2 . . Core 2 | . . . . 7 7 6 . . . . . . 4 . . . 1 3 Reactor 1 | . . . . . . . . . . . . . . 5 5 5 5 3 Leg 27 | . 27 28 33 35 30 30 30 25 23 20 28 27 28 29 28 22 23 19 Device 8 | . 13 14 11 5 5 . 6 12 11 11 9 16 5 5 6 6 7 4 Storage 9 | . 14 14 11 9 12 15 15 9 5 5 7 5 5 5 5 5 4 3 Processor 10 | . . . . 8 10 7 9 16 11 11 11 11 11 11 11 15 19 16 Hackware 2 | . . . . . . . . . 3 5 5 5 5 5 5 5 7 7 Protection 5 | . . . . 3 7 15 5 4 5 5 3 . 9 11 9 7 6 10 Energy Gun 9 | . 14 14 5 13 13 13 16 11 5 1 8 5 5 5 6 3 7 5 Energy Cannon 1 | . . . . . . . . 3 5 8 8 3 . . . . . . Ballistic Gun 5 | . 10 13 5 7 5 3 . 1 5 2 1 10 16 14 4 . 2 . Ballistic Cannon 2 | . 3 . 11 5 3 3 1 . 3 2 . 1 . . 8 3 . . Peak Build Rating 136 | 6 10 10 14 30 42 40 42 64 68 68 75 83 91 91 91 111 132 136 Average Rating 57 | 4 8 10 12 25 37 39 40 53 65 61 69 77 85 90 88 94 126 125 On Entrance 53 | . 6 10 10 14 29 39 40 40 60 68 56 70 81 91 89 83 100 130 Avg Prop Armor Cover (%) 4 | . 8 . . . . . . . . . 4 4 7 . . . . . Naked Turns . | . . . . . . . . . . . . . . . . . . . Heaviest Build 94 | 13 31 31 34 43 56 58 62 62 65 68 68 61 76 78 83 79 94 73 Greatest Support 123 | 20 20 20 40 52 62 62 62 80 80 80 100 80 81 81 86 110 113 123 Greatest Overweight (x) 1 | . 1 1 1 1 1 . . . . . . 1 1 . 1 . . 1 Average Overweight (x) . | . . 1 . . . . . . . . . . . . . . . . Largest Inventory Capacity 15 | 8 15 15 15 15 15 15 15 15 15 15 15 15 15 15 15 15 15 15 Average Capacity 14 | 7 9 15 15 15 15 15 15 15 15 15 15 15 15 15 15 15 15 14 Most Carried 15 | 6 10 15 15 15 15 15 15 15 15 15 15 15 15 15 15 15 15 14 Average Carried 13 | 3 7 14 12 14 14 15 14 13 13 14 14 14 13 15 14 14 14 13 Final Capacity 15 | 8 15 15 15 15 15 15 15 15 15 15 15 15 15 15 15 15 15 5 Final Carried 15 | 6 10 15 12 15 15 15 15 15 14 14 15 15 15 15 15 10 15 4 Class Distribution -------------------- 24% | Gunner 17% | Mutant 11% | Scavenger-Mutant 9% | Scavenger-Tank 8% | Scavenger-Gunner 7% | Scavenger-Gladiator 6% | Skirmisher 6% | Tank 4% | Commander-Skirmisher 3% | Scavenger-Skirmisher Dominant Class ---------------- Mutant | -10/Materials Mutant | -10/Mines Scavenger-Mutant | -9/Materials Scavenger-Gunner | -8/Materials Gunner | -7/Factory Tank | -7/Lower Caves Gunner | -7/Lower Caves Gunner | -6/Factory Skirmisher | -5/Factory Skirmisher | -5/Waste Skirmisher | -5/Factory Commander-Skirmisher | -5/Extension Scavenger-Tank | -5/Cetus Scavenger-Tank | -5/Archives Scavenger-Tank | -5/Hub_04(d) Scavenger-Mutant | -4/Factory Scavenger-Gladiator | -3/Research Scavenger-Gladiator | -2/Research Resources | -11 -10 -10 -9 -8 -7 -7 -7 -6 -5 -5 -5 -5 -5 -5 -5 -4 -3 -2 ----------- Run | Yrd Mat Min Mat Mat Fac Low Low Fac Fac Was Fac Ext Cet Arc Hub Fac Res Res Matter Collected 5256 | 143 282 71 237 498 822 165 103 420 . 467 208 630 332 . 142 406 300 30 Remotely 306 | . . . . . . . . . . . . . . . . 306 . . Salvage Created 9465 | . 450 67 253 682 1045 42 176 1155 . 1312 642 1113 301 227 416 928 413 243 Parts 347 | . 16 10 17 38 57 5 8 39 . 7 36 49 8 9 14 11 14 9 Haulers Intercepted 3 | . . . 1 . 1 . . . . . . . . . . . 1 . Recyclers Shooed 7 | . 2 . . . . . . 2 . . 3 . . . . . . . Parts Field Recycled . | . . . . . . . . . . . . . . . . . . . Retrieved Matter . | . . . . . . . . . . . . . . . . . . . Parts Self-Destructed 14 | . . . . . . 7 7 . . . . . . . . . . . Prevented 2 | . . . . . . 2 . . . . . . . . . . . . Parts Restored . | . . . . . . . . . . . . . . . . . . . Kills | -11 -10 -10 -9 -8 -7 -7 -7 -6 -5 -5 -5 -5 -5 -5 -5 -4 -3 -2 ------- Run | Yrd Mat Min Mat Mat Fac Low Low Fac Fac Was Fac Ext Cet Arc Hub Fac Res Res Combat Hostiles Destroyed 148 | . 8 6 6 13 22 4 4 19 . 6 8 15 5 4 8 12 5 3 Melee 10 | . . . . . . . . . . . . . . . 1 4 2 3 Guns 53 | . 6 4 2 8 8 . 1 7 . . 2 9 4 . 2 . . . Cannons 32 | . 2 . 3 4 4 . . 4 . 2 4 5 . . 4 . . . AOE 26 | . . 2 1 . 7 4 3 2 . 2 . . 1 4 . . . . Classes Destroyed 16 | . 3 2 3 4 2 . . . . 1 . 1 . . . . . . Worker 10 | . . . 1 2 5 . . . . . . . . . 1 1 . . Builder 5 | . . . . 1 1 . . 2 . . 1 . . . . . . . Tunneler 1 | . . 1 . . . . . . . . . . . . . . . . Hauler 3 | . . . 1 . 1 . . . . . . . . . . . 1 . Recycler 4 | . 1 . 1 . . . . . . . 1 . . . . 1 . . Operator 3 | . . . . . 1 . . . . . . 2 . . . . . . Watcher 9 | . 1 . 1 2 . . . 1 . . . . 2 . 1 1 . . Swarmer 19 | . . 6 2 . 4 4 . 1 . . . 1 . . . . 1 . Cutter 2 | . . . . 2 . . . . . . . . . . . . . . Grunt 64 | . 8 . 2 5 10 . 2 10 . . . 6 . 4 6 8 2 1 Brawler 4 | . . . . 1 2 . 1 . . . . . . . . . . . Sentry 22 | . . . 2 4 1 . . 4 . . 2 7 . . 1 . . 1 Hunter 10 | . . . . 1 . . . 1 . . 3 . . . 1 2 2 . Programmer 15 | . . . . . 5 . 1 3 . . 3 . . . . 2 . 1 Behemoth 1 | . . . . . . . . . . . . 1 . . . . . . Compactor 6 | . . . . . . . . . . 6 . . . . . . . . Cetus Guard 5 | . . . . . . . . . . . . . 5 . . . . . Thug 1 | . . . . . . . . . . . . 1 . . . . . . Savage 1 | . . . . . . . . . . . . . 1 . . . . . Best Kill Streak 6 | . 4 3 2 3 6 4 3 4 . 5 4 3 4 4 5 4 1 1 Combat Bots Only 5 | . 2 3 1 2 4 4 3 4 . 5 3 3 3 4 5 3 1 1 Max Kills in Single Turn 4 | . 1 1 1 2 4 2 3 2 . 2 1 2 2 3 2 1 1 1 Gunslinging . | . . . . . . . . . . . . . . . . . . . Exploded 3 | . . 1 1 . 3 2 3 1 . 1 . . 1 3 . . . . Melee 1 | . . . . . . . . . . . . . . . 1 1 1 1 Uniques/NPCs Destroyed . | . . . . . . . . . . . . . . . . . . . Combat | -11 -10 -10 -9 -8 -7 -7 -7 -6 -5 -5 -5 -5 -5 -5 -5 -4 -3 -2 -------- Run | Yrd Mat Min Mat Mat Fac Low Low Fac Fac Was Fac Ext Cet Arc Hub Fac Res Res Hostile Shots Fired 1379 | . 49 21 66 95 112 7 10 185 . 2 71 66 71 7 92 175 71 279 Missed 434 | . 5 6 20 32 46 1 1 65 . . 24 27 25 2 24 57 23 76 Hits 945 | . 44 15 46 63 66 6 9 120 . 2 47 39 46 5 68 118 48 203 Melee 6 | . . . . 4 . . . . . 2 . . . . . . . . Projectile 939 | . 44 15 46 59 66 6 9 120 . . 47 39 46 5 68 118 48 203 AOE 6 | . . . . 2 . . . 1 . . . . . . . . 3 . Critical Strikes 53 | . 2 1 1 4 3 . . 2 . . 4 . 11 . 2 8 2 13 Part Disruptions 2 | . . . . . . . . . . . . . . . . 1 . 1 Damage Taken 17040 | . 571 131 707 1005 875 84 133 1543 . 175 820 832 1260 95 1126 1790 715 5178 Core 2515 | . 114 33 86 82 31 12 14 142 . 6 59 21 52 . 65 251 61 1486 Absorbed by Shields 298 | . . . . . . . . . . . . . . . . . 298 . Ignored by Resistances 317 | . . . . . . . . 15 . . 3 4 . . 129 166 . . Regen/Repaired (Parts) 12 | . . . . 12 . . . . . . . . . . . . . . Core Remaining (%) 81 | 100 . 41 78 85 . . 91 83 . . . . . . 79 78 95 . Volleys Fired 383 | . 40 10 33 46 55 2 5 46 3 20 24 44 17 6 27 . . 5 Largest 4 | . 2 2 2 3 3 1 3 3 1 4 4 4 4 2 4 . . 2 Hottest 315 | . 80 70 95 165 160 39 175 228 90 245 315 236 201 66 246 . . 188 Shots Fired 979 | . 80 17 65 125 132 3 11 123 3 58 75 161 49 5 67 . . 5 Gun 671 | . 75 15 22 97 104 1 8 89 . 11 40 117 44 2 44 . . 2 Cannon 269 | . 5 . 43 28 21 . 2 34 3 30 35 44 . . 23 . . 1 Launcher 39 | . . 2 . . 7 2 1 . . 17 . . 5 3 . . . 2 Special . | . . . . . . . . . . . . . . . . . . . Kinetic 433 | . 40 7 61 83 43 . 2 12 . 18 9 93 33 2 29 . . 1 Thermal 325 | . 40 8 4 6 3 . 8 80 3 23 45 57 8 . 38 . . 2 Explosive 39 | . . 2 . . 7 2 1 . . 17 . . 5 3 . . . 2 Electromagnetic 182 | . . . . 36 79 1 . 31 . . 21 11 3 . . . . . Robot Hit Streak 31 | . 9 2 11 16 10 2 5 31 . 9 5 31 13 3 8 . . 1 Robot Miss Streak 8 | . 3 3 7 5 4 1 2 1 . 3 8 3 2 1 5 . . 2 Penetration Max 1 | . . . . . . . . . . . . 1 1 1 1 . . . Secondary Targets 5 | . . . . . . . . 1 . . . . 2 . 2 . . . Max Gunslinging Chain 1 | . . . . . . . . 1 . . . . 1 . 1 . . . Shots Hit Robots 763 | . 51 8 38 78 91 2 6 107 . 42 42 120 36 4 50 35 20 33 Core Hits 358 | . 22 8 11 28 49 4 5 53 . 17 18 49 36 17 25 5 2 9 Critical Kills 10 | . . . . . 1 . . 2 . 2 2 1 1 . 1 . . . Critical Parts Destroyed 20 | . . . . 1 . . . . . . . 2 . . . 13 4 . Critical Strikes 69 | . 4 1 3 7 6 . 1 8 . 2 5 7 1 . 4 13 5 2 Burn 19 | . 4 1 . 1 1 . 1 4 . . 1 4 . . 2 . . . Meltdown 6 | . . . . . . . . 2 . 2 2 . . . . . . . Destroy 7 | . . . . 1 1 . . . . . . 3 1 . 1 . . . Blast 10 | . . . 3 4 1 . . 1 . . . . . . 1 . . . Corrupt 7 | . . . . 1 3 . . 1 . . 2 . . . . . . . Smash 17 | . . . . . . . . . . . . . . . . 13 4 . Impale 3 | . . . . . . . . . . . . . . . . . 1 2 Melee Attacks 111 | . . . . . . . . . . . . . . . 4 49 26 32 Impact 70 | . . . . . . . . . . . . . . . 4 49 16 1 Slashing . | . . . . . . . . . . . . . . . . . . . Piercing 41 | . . . . . . . . . . . . . . . . . 10 31 Sneak Attacks 3 | . . . . . . . . . . . . . . . . 2 1 . Combat Hostiles . | . . . . . . . . . . . . . . . . . . . Follow-up Attacks 1 | . . . . . . . . . . . . . . . . . . 1 Damage Inflicted 25280 | . 576 285 658 1683 2844 359 319 2855 . 3443 1330 2956 1570 733 1543 1951 967 1208 Guns 9655 | . 529 89 116 1132 1494 20 129 1524 . 132 469 2046 1067 91 817 . . . Cannons 5209 | . 47 . 542 347 295 . . 885 . 815 720 910 . . 614 . . 34 Explosions 6202 | . . 196 . 173 981 339 190 438 . 2496 141 . 503 642 . . . 103 Melee 4101 | . . . . . . . . . . . . . . . 112 1951 967 1071 Ramming 113 | . . . . 31 74 . . 8 . . . . . . . . . . Kinetic 6124 | . 167 38 611 920 618 . . 184 . 327 102 1442 838 91 752 . . 34 Thermal 6613 | . 409 51 47 250 64 . 129 1901 . 620 985 1304 174 . 679 . . . Explosive 5450 | . . 196 . . 981 339 190 . . 2496 . . 503 642 . . . 103 Electromagnetic 2879 | . . . . 482 1107 20 . 762 . . 243 210 55 . . . . . Impact 2800 | . . . . . . . . . . . . . . . 112 1951 690 47 Slashing . | . . . . . . . . . . . . . . . . . . . Piercing 1301 | . . . . . . . . . . . . . . . . . 277 1024 Highest Corruption 26 | . . . . 3 4 4 7 1 . 16 16 16 16 16 16 26 . 16 Average Corruption 8 | . . . . 2 1 4 6 1 . 9 16 16 16 16 16 8 . 8 Corruption Purged 4 | . . . . . . . . 4 . . . . . . . . . . Corruption Blocked . | . . . . . . . . . . . . . . . . . . . Effects 223 | . . . . 11 12 15 22 5 . 6 26 60 23 5 21 12 . 5 Message Errors 50 | . . . . 4 2 6 7 2 . 1 7 8 5 1 3 3 . 1 Matter Fused 36 | . . . . 1 3 2 4 1 . 3 7 9 1 . 3 2 . . Heat Flow Errors 24 | . . . . 1 3 2 . . . . 1 9 3 1 2 2 . . Energy Discharges 30 | . . . . . 1 3 5 1 . . 3 7 4 1 3 2 . . Parts Rejected 5 | . . . . . 1 . . . . . . 2 . . . 1 . 1 Parts Fused 4 | . . . . . . . . . . . 1 1 2 . . . . . Data Loss (minor) 30 | . . . . 4 2 1 2 . . . . 10 4 . 4 2 . 1 Data Loss (major) 8 | . . . . . . . 4 1 . . 1 2 . . . . . . Misfires 6 | . . . . . . 1 . . . 1 . . 2 . 2 . . . Alerts 2 | . . . . . . . . . . . 1 1 . . . . . . Misdirections 4 | . . . . . . . . . . . . 2 . . 1 . . 1 Weapon Failures 24 | . . . . 1 . . . . . 1 5 9 2 2 3 . . 1 Overload Shots . | . . . . . . . . . . . . . . . . . . . Overflow Damage 1533 | . . 27 . 6 28 . . 63 . 3 27 . . 3 95 962 261 58 Projectiles 94 | . . . . . 26 . . 63 . . 2 . . . 3 . . . Explosions 64 | . . 27 . 6 . . . . . 3 25 . . 3 . . . . Melee 1375 | . . . . . 2 . . . . . . . . . 92 962 261 58 Knockbacks 38 | . . . 2 4 3 . . . . . . 2 . . 10 15 2 . Impact 16 | . . . . . . . . . . . . . . . . 14 2 . Kinetic 20 | . . . 2 4 3 . . . . . . 1 . . 10 . . . Secondary 2 | . . . . . . . . . . . . 1 . . . 1 . . Self-Inflicted Damage 191 | . . 14 . . . . . 91 . 86 . . . . . . . . Shots 9 | . . 1 . . . . . 3 . 5 . . . . . . . . Rammed . | . . . . . . . . . . . . . . . . . . . Targets Rammed 15 | . . . . 4 9 . . 2 . . . . . . . . . . Kicked 15 | . . . . 4 9 . . 2 . . . . . . . . . . Crushed . | . . . . . . . . . . . . . . . . . . . Highest Temperature 1068 | . 477 . 11 252 375 213 364 315 . 335 355 252 498 227 266 255 . 1068 Average Temperature 122 | . 206 . 4 60 126 85 184 77 . 164 93 80 251 127 108 104 . 332 Received Heat Transfer 5134 | . 366 . 153 369 243 . . 435 . . 72 186 45 45 441 224 72 2483 Effects 21 | . 4 . . . 1 . 1 1 . 4 . . 5 . . . . 5 Shutdowns 6 | . 3 . . . . . 1 . . . . . 1 . . . . 1 Energy Bleed 4 | . 1 . . . . . . 1 . 1 . . 1 . . . . . Interference 6 | . . . . . 1 . . . . 3 . . . . . . . 2 Matter Decay 2 | . . . . . . . . . . . . . 1 . . . . 1 Damage (minor) 1 | . . . . . . . . . . . . . 1 . . . . . Damage (major) 1 | . . . . . . . . . . . . . 1 . . . . . Damage (core) 1 | . . . . . . . . . . . . . . . . . . 1 Siege Activations . | . . . . . . . . . . . . . . . . . . . Martial Activations . | . . . . . . . . . . . . . . . . . . . Shielding Activations . | . . . . . . . . . . . . . . . . . . . Robots Disrupted . | . . . . . . . . . . . . . . . . . . . Combat Hostiles . | . . . . . . . . . . . . . . . . . . . Robots Corrupted 19 | . . . . 1 4 . . . . . . . . . 1 10 3 . Combat Hostiles 16 | . . . . 1 3 . . . . . . . . . 1 8 3 . Parts Fried 35 | . . . . 2 12 . . 1 . . 2 . . . 1 12 5 . Impact Corruptions 44 | . . . . . 1 . . . . . . . . . 5 32 6 . Robots Melted 11 | . . . . . . . . 6 . 2 2 1 . . . . . . Combat Hostiles 11 | . . . . . . . . 6 . 2 2 1 . . . . . . Parts Melted 48 | . 3 . . 1 2 . 2 23 . 2 8 6 1 . . . . . Heat Transferred 12029 | . 1517 222 111 509 185 . 259 3248 . 870 1340 2087 337 . 1344 . . . Parts Sabotaged . | . . . . . . . . . . . . . . . . . . . Parts Stolen . | . . . . . . . . . . . . . . . . . . . Parts Stripped . | . . . . . . . . . . . . . . . . . . . Power Chain Reactions 4 | . . . . 1 . . . 3 . . . . . . . . . . Alert | -11 -10 -10 -9 -8 -7 -7 -7 -6 -5 -5 -5 -5 -5 -5 -5 -4 -3 -2 ------- Run | Yrd Mat Min Mat Mat Fac Low Low Fac Fac Was Fac Ext Cet Arc Hub Fac Res Res Maximum Alert Level 2 | . . . . . 2 . . 1 . . . 1 . . . . . . Low Security (%) 92 | 100 100 100 100 100 81 . . 81 100 100 100 72 100 100 100 100 100 100 Level 1 6 | . . . . . 12 . . 18 . . . 27 . . . . . . Level 2 . | . . . . . 6 . . . . . . . . . . . . . Level 3 . | . . . . . . . . . . . . . . . . . . . Level 4 . | . . . . . . . . . . . . . . . . . . . Level 5 . | . . . . . . . . . . . . . . . . . . . High Security . | . . . . . . . . . . . . . . . . . . . Max Security . | . . . . . . . . . . . . . . . . . . . Peak Influence 495 | . 70 110 60 155 495 . . 255 67 66 135 329 167 141 105 81 30 97 Initial 167 | . . . . 1 58 . . . 67 . . 45 167 44 49 39 18 . Average 64 | . 22 17 19 65 133 . . 119 13 15 65 133 45 57 33 32 3 14 Influence Increases 5696 | . 262 155 220 499 905 90 100 637 6 70 320 981 279 171 229 387 119 266 Destroy 0b10 Robot/C 3220 | . 160 120 120 260 560 80 80 380 . . 160 500 160 80 160 240 100 60 Destroy 0b10 Robot/NC 185 | . 10 5 20 25 50 . . 15 . . 10 10 10 . 10 15 5 . Destroy Leader 654 | . 32 20 34 84 136 10 20 112 . . 60 30 . . 22 52 12 30 Allied During Kill 451 | . . . . . 34 . . . . . . 350 57 10 . . . . Successful Hack 102 | . . . . 5 40 . . 2 . . . 40 . . . 10 . 5 Disable Machine 225 | . 15 . 15 30 . . . 75 . . 60 15 . . . 15 . . Destroy Structure 439 | . . 10 1 5 55 . . 23 6 70 30 36 52 36 22 10 2 81 Partial Spotted 15 | . . . . . . . . . . . . . . . . 15 . . Lose Combat Pursuer 405 | . 45 . 30 90 30 . . 30 . . . . . 45 15 30 . 90 Influence Decreases 5635 | . 261 156 216 373 546 516 163 499 144 70 226 776 466 142 289 431 156 205 Entered New Map 744 | . . 1 . 3 72 182 13 . 71 . . 49 132 68 92 42 19 . Time Decay 3875 | . 251 155 176 300 424 334 140 439 73 40 196 464 141 34 157 336 135 80 Lost Part 581 | . 10 . 40 70 30 . 10 60 . 30 30 30 53 . 40 53 . 125 Lost Ally 302 | . . . . . 20 . . . . . . 100 140 40 . . 2 . Purge Threat 133 | . . . . . . . . . . . . 133 . . . . . . Squads Dispatched 37 | . . . 1 3 6 . . 6 . . 4 1 . . 5 5 4 2 Investigation 7 | . . . 1 . . . . 1 . . 1 1 . . 2 1 . . Extermination 11 | . . . . . 5 . . 3 . . 1 . . . . 1 . 1 Reinforcement 13 | . . . . 3 1 . . 2 . . 2 . . . . . 4 1 Assault . | . . . . . . . . . . . . . . . . . . . Garrison 6 | . . . . . . . . . . . . . . . 3 3 . . Intercept . | . . . . . . . . . . . . . . . . . . . Searches Triggered . | . . . . . . . . . . . . . . . . . . . Construction Impeded 1 | . . . . . . . . 1 . . . . . . . . . . Haulers Reinforced 1 | . . . . . . . . . . . . . . . . . 1 . Active Scanning Responses . | . . . . . . . . . . . . . . . . . . . Cargo Convoy Interrupts . | . . . . . . . . . . . . . . . . . . . Stealth | -11 -10 -10 -9 -8 -7 -7 -7 -6 -5 -5 -5 -5 -5 -5 -5 -4 -3 -2 --------- Run | Yrd Mat Min Mat Mat Fac Low Low Fac Fac Was Fac Ext Cet Arc Hub Fac Res Res Distress Signals 25 | . 2 . 2 . 2 . . 3 . . . 1 2 . 2 . 11 . Communications Jammed . | . . . . . . . . . . . . . . . . . . . Distress Signals . | . . . . . . . . . . . . . . . . . . . Times Spotted 275 | . 18 6 22 24 40 4 4 27 1 6 11 26 9 12 17 18 18 12 Peak Tracking Total 10 | . 6 3 9 4 7 4 3 4 1 5 2 4 5 10 7 5 5 6 Tactical Retreats 16 | . 2 . 1 4 2 . . 1 . . . . . 1 1 2 . 2 Traps | -11 -10 -10 -9 -8 -7 -7 -7 -6 -5 -5 -5 -5 -5 -5 -5 -4 -3 -2 ------- Run | Yrd Mat Min Mat Mat Fac Low Low Fac Fac Was Fac Ext Cet Arc Hub Fac Res Res Traps Triggered 11 | . . . 1 . 1 . . 3 1 . 1 . . . . 2 1 1 Indirectly . | . . . . . . . . . . . . . . . . . . . Trap Hack Attempts . | . . . . . . . . . . . . . . . . . . . Triggered . | . . . . . . . . . . . . . . . . . . . Disarmed . | . . . . . . . . . . . . . . . . . . . Reprogrammed . | . . . . . . . . . . . . . . . . . . . Reused . | . . . . . . . . . . . . . . . . . . . Traps Extracted . | . . . . . . . . . . . . . . . . . . . Installed . | . . . . . . . . . . . . . . . . . . . Triggered . | . . . . . . . . . . . . . . . . . . . Machines | -11 -10 -10 -9 -8 -7 -7 -7 -6 -5 -5 -5 -5 -5 -5 -5 -4 -3 -2 ---------- Run | Yrd Mat Min Mat Mat Fac Low Low Fac Fac Was Fac Ext Cet Arc Hub Fac Res Res Machines Disabled 17 | . 1 . 1 2 . . . 5 . . 4 2 1 . . 1 . . Max in Single Turn 2 | . 1 . 1 1 . . . 2 . . 2 1 1 . . 1 . . Machines Repaired . | . . . . . . . . . . . . . . . . . . . Machines Dismantled . | . . . . . . . . . . . . . . . . . . . Machines Sabotaged . | . . . . . . . . . . . . . . . . . . . Overloaded Fab Kills . | . . . . . . . . . . . . . . . . . . . Hacking | -11 -10 -10 -9 -8 -7 -7 -7 -6 -5 -5 -5 -5 -5 -5 -5 -4 -3 -2 --------- Run | Yrd Mat Min Mat Mat Fac Low Low Fac Fac Was Fac Ext Cet Arc Hub Fac Res Res Machines Accessed 43 | . 1 . . 1 10 . . 3 . . 2 14 2 . 2 5 2 1 Terminals 32 | . . . . . 7 . . 1 . . 2 14 2 . 2 2 1 1 Fabricators 1 | . . . . . 1 . . . . . . . . . . . . . Repair Stations 4 | . . . . 1 . . . 2 . . . . . . . 1 . . Recycling Units 2 | . 1 . . . 1 . . . . . . . . . . . . . Scanalyzers 2 | . . . . . . . . . . . . . . . . 1 1 . Garrison Access 2 | . . . . . 1 . . . . . . . . . . 1 . . Total Hacks 99 | . 2 . . 4 22 . . 7 . . 3 34 5 . 5 10 5 2 Successful 33 | . 2 . . 2 8 . . 2 . . 3 11 2 . . 1 . 2 Failed 66 | . . . . 2 14 . . 5 . . . 23 3 . 5 9 5 . Catastrophic 13 | . . . . . 4 . . 1 . . . 3 1 . 2 2 . . Database Lockouts . | . . . . . . . . . . . . . . . . . . . Manual 6 | . . . . . 4 . . 1 . . . . . . . . 1 . Terminals 75 | . . . . . 17 . . 1 . . 3 34 5 . 5 4 4 2 Fabricators 2 | . . . . . 2 . . . . . . . . . . . . . Repair Stations 12 | . . . . 4 . . . 6 . . . . . . . 2 . . Recycling Units 4 | . 2 . . . 2 . . . . . . . . . . . . . Scanalyzers 4 | . . . . . . . . . . . . . . . . 3 1 . Garrison Access 2 | . . . . . 1 . . . . . . . . . . 1 . . Terminal Hacks 23 | . . . . . 4 . . . . . 3 11 2 . . 1 . 2 Record 3 | . . . . . . . . . . . . 1 1 . . . . 1 Part Schematic 1 | . . . . . 1 . . . . . . . . . . . . . Prototype ID Bank 1 | . . . . . . . . . . . . 1 . . . . . . Open Door 7 | . . . . . . . . . . . 1 5 1 . . . . . Branch Access Points 2 | . . . . . 1 . . . . . . 1 . . . . . . Emergency Access Points 2 | . . . . . 1 . . . . . 1 . . . . . . . Terminal Index 1 | . . . . . . . . . . . . 1 . . . . . . Unreport Threat 1 | . . . . . . . . . . . . 1 . . . . . . Locate Traps 2 | . . . . . . . . . . . . 1 . . . 1 . . Registered Components 1 | . . . . . . . . . . . . . . . . . . 1 Zone Layout 2 | . . . . . 1 . . . . . 1 . . . . . . . Fabricator Hacks 1 | . . . . . 1 . . . . . . . . . . . . . Build 1 | . . . . . 1 . . . . . . . . . . . . . Repair Station Hacks 4 | . . . . 2 . . . 2 . . . . . . . . . . Scan Component 3 | . . . . 1 . . . 2 . . . . . . . . . . Repair 1 | . . . . 1 . . . . . . . . . . . . . . Recycling Unit Hacks 2 | . 2 . . . . . . . . . . . . . . . . . Recycle Component 1 | . 1 . . . . . . . . . . . . . . . . . Report Inventory 1 | . 1 . . . . . . . . . . . . . . . . . Scanalyzer . | . . . . . . . . . . . . . . . . . . . Garrison Access Hacks . | . . . . . . . . . . . . . . . . . . . Unauthorized Hacks 3 | . . . . . 3 . . . . . . . . . . . . . Terminals 3 | . . . . . 3 . . . . . . . . . . . . . Track 2 | . . . . . 2 . . . . . . . . . . . . . Botnet 1 | . . . . . 1 . . . . . . . . . . . . . Fabricators . | . . . . . . . . . . . . . . . . . . . Repair Stations . | . . . . . . . . . . . . . . . . . . . Recycling Units . | . . . . . . . . . . . . . . . . . . . Scanalyzers . | . . . . . . . . . . . . . . . . . . . Garrison Access . | . . . . . . . . . . . . . . . . . . . Data Cores Recovered 2 | . . . . . 1 . . . . . . 1 . . . . . . Used . | . . . . . . . . . . . . . . . . . . . Hacking Detections 37 | . 1 . . 1 10 . . 3 . . 1 10 2 . 2 5 2 . Full Trace Events 4 | . . . . . . . . . . . . 1 . . 2 1 . . Feedback Events . | . . . . . . . . . . . . . . . . . . . Feedback Blocked . | . . . . . . . . . . . . . . . . . . . Robot Schematics Acquired . | . . . . . . . . . . . . . . . . . . . Robots Built 3 | . . . . . 3 . . . . . . . . . . . . . Authchips . | . . . . . . . . . . . . . . . . . . . Time 49 | . . . . . 49 . . . . . . . . . . . . . Total Robot Build Rating 6 | . . . . . 6 . . . . . . . . . . . . . Part Schematics Acquired 1 | . . . . . 1 . . . . . . . . . . . . . Parts Built . | . . . . . . . . . . . . . . . . . . . Authchips . | . . . . . . . . . . . . . . . . . . . Time . | . . . . . . . . . . . . . . . . . . . Total Part Build Rating . | . . . . . . . . . . . . . . . . . . . Part Studies Acquired . | . . . . . . . . . . . . . . . . . . . Parts Repaired 1 | . . . . 1 . . . . . . . . . . . . . . Time 44 | . . . . 44 . . . . . . . . . . . . . . Parts Recycled 1 | . 1 . . . . . . . . . . . . . . . . . Recycled Matter . | . . . . . . . . . . . . . . . . . . . Retrieved Matter . | . . . . . . . . . . . . . . . . . . . Retrieved Components . | . . . . . . . . . . . . . . . . . . . Parts Scanalyzed . | . . . . . . . . . . . . . . . . . . . Part Schematics Acquired . | . . . . . . . . . . . . . . . . . . . Parts Damaged . | . . . . . . . . . . . . . . . . . . . Bothacking | -11 -10 -10 -9 -8 -7 -7 -7 -6 -5 -5 -5 -5 -5 -5 -5 -4 -3 -2 ------------ Run | Yrd Mat Min Mat Mat Fac Low Low Fac Fac Was Fac Ext Cet Arc Hub Fac Res Res Used RIF Installer . | . . . . . . . . . . . . . . . . . . . Robots Hacked . | . . . . . . . . . . . . . . . . . . . Non-combat . | . . . . . . . . . . . . . . . . . . . Combat . | . . . . . . . . . . . . . . . . . . . Robot Hacks Applied . | . . . . . . . . . . . . . . . . . . . Relay Couplers Released . | . . . . . . . . . . . . . . . . . . . Fabnet Peak Effective % . | . . . . . . . . . . . . . . . . . . . Robots Rewired 15 | . . . . . . . . . . . . 15 . . . . . . Allies Hacked 2 | . . . . . 2 . . . . . . . . . . . . . Hacks Repelled . | . . . . . . . . . . . . . . . . . . . Allies | -11 -10 -10 -9 -8 -7 -7 -7 -6 -5 -5 -5 -5 -5 -5 -5 -4 -3 -2 -------- Run | Yrd Mat Min Mat Mat Fac Low Low Fac Fac Was Fac Ext Cet Arc Hub Fac Res Res Total Allies 23 | . . . . . 3 . . . . . . 20 . . . . . . Largest Group 13 | . . . . . 3 . . . . . . 13 13 3 . . . . Highest-Rated Group 360 | . . . . . 54 . . . . . . 360 360 68 . . . . Highest-Rated Ally 39 | . . . . . 18 . . . . . . 39 39 26 . . . . Total Orders 6 | . . . . . . . . . . . . . . . . . 6 . EXPLORE 4 | . . . . . . . . . . . . . . . . . 4 . RETURN 2 | . . . . . . . . . . . . . . . . . 2 . Ally Attacks 139 | . . . . . 22 . . . . . . 76 40 1 . . . . Total Damage 2816 | . . . . . 617 . . . . . . 1384 794 21 . . . . Kills 22 | . . . . . 8 . . . . . . 11 3 . . . . . Allies Corrupted . | . . . . . . . . . . . . . . . . . . . Allies Melted 1 | . . . . . . . . . . . . . . 1 . . . . Intel | -11 -10 -10 -9 -8 -7 -7 -7 -6 -5 -5 -5 -5 -5 -5 -5 -4 -3 -2 ------- Run | Yrd Mat Min Mat Mat Fac Low Low Fac Fac Was Fac Ext Cet Arc Hub Fac Res Res Active Infowar (turns) 4723 | . 384 506 161 1 124 . . 711 386 61 124 999 . . 54 448 489 275 Sensors 3489 | . 47 . . . . . . 711 386 61 124 999 . . 54 448 384 275 Terrain 997 | . 330 506 161 . . . . . . . . . . . . . . . Structural 7 | . 7 . . . . . . . . . . . . . . . . . Seismic 1 | . . . . 1 . . . . . . . . . . . . . . Machine Analysis 124 | . . . . . 124 . . . . . . . . . . . . . Cloaking 110 | . . . . . . . . . . . . . . . . 5 105 . Robot Analysis Total . | . . . . . . . . . . . . . . . . . . . Derelict Logs Recovered 4 | . . 2 . . . 2 . . . . . . . . . . . . Drone Launches 4 | . . . . . . . . . . . . . . . . . 4 . Drone Recoveries 3 | . . . . . . . . . . . . . . . . . 3 . Exploration | -11 -10 -10 -9 -8 -7 -7 -7 -6 -5 -5 -5 -5 -5 -5 -5 -4 -3 -2 ------------- Run | Yrd Mat Min Mat Mat Fac Low Low Fac Fac Was Fac Ext Cet Arc Hub Fac Res Res Turns Passed 13900 | 68 810 972 497 1250 1656 747 651 1483 386 164 472 1174 517 94 439 939 1063 518 Spaces Moved 8433 | 52 435 486 228 759 1027 585 495 983 263 66 236 627 345 65 202 588 667 324 Core 21 | 19 . . . . . . . . . . . . . . . . . 2 Treads 7 | . 7 . . . . . . . . . . . . . . . . . Legs 8405 | 33 428 486 228 759 1027 585 495 983 263 66 236 627 345 65 202 588 667 322 Wheels . | . . . . . . . . . . . . . . . . . . . Hover . | . . . . . . . . . . . . . . . . . . . Flight . | . . . . . . . . . . . . . . . . . . . Fastest Speed 50 | 50 120 190 120 120 122 125 125 120 127 127 130 122 120 120 120 120 120 50 Average Speed 129 | 94 135 190 155 122 123 125 125 122 127 129 130 127 120 120 149 120 120 119 Slowest Speed 200 | 120 190 190 190 190 192 125 125 127 127 130 130 200 190 120 190 120 120 170 Overloaded Moves . | . . . . . . . . . . . . . . . . . . . Propulsion Burnouts . | . . . . . . . . . . . . . . . . . . . Robots Hopped . | . . . . . . . . . . . . . . . . . . . Potential Cave-ins . | . . . . . . . . . . . . . . . . . . . Cave-ins Triggered . | . . . . . . . . . . . . . . . . . . . Exploration Rate (%) 44 | 3 70 87 21 44 25 76 69 22 6 74 8 73 91 76 28 13 47 8 Regions Visited 18 Branch Regions 7 Pre-discovered Areas 2 | . . 1 . . . 1 . . . . . . . . . . . . Known Exits Taken 10 | . . . . . 1 . 1 1 . . 1 1 1 1 1 1 1 . Unknown Exits Taken 6 | 1 1 1 1 1 . 1 . . . . . . . . . . . . Scrap Searched 6 | . . 1 . . . 5 . . . . . . . . . . . . Spaces Dug 21 | . . . . . 12 . . . 3 . . . . . . 5 1 . Terrain Destroyed 404 | . . 11 1 7 58 37 3 20 3 81 14 16 66 28 11 5 1 42 Melee 6 | . . . . . . . . . . . . . . . . 5 1 . Projectile 45 | . . . 1 4 1 . . 1 3 1 5 16 2 . 11 . . . AOE 353 | . . 11 . 3 57 37 3 19 . 80 9 . 64 28 . . . 42 Terrain Rammed . | . . . . . . . . . . . . . . . . . . . Walls Destroyed . | . . . . . . . . . . . . . . . . . . . Machines Disabled . | . . . . . . . . . . . . . . . . . . . Actions | -11 -10 -10 -9 -8 -7 -7 -7 -6 -5 -5 -5 -5 -5 -5 -5 -4 -3 -2 --------- Run | Yrd Mat Min Mat Mat Fac Low Low Fac Fac Was Fac Ext Cet Arc Hub Fac Res Res Total 10470 | 71 584 518 303 1006 1305 598 513 1165 313 99 346 895 413 73 271 720 878 399 Wait 818 | . 71 11 25 110 122 2 2 63 40 4 50 64 28 1 22 36 139 28 Move 8416 | 51 434 485 227 758 1026 584 494 982 263 65 235 626 344 64 201 587 666 324 Hop . | . . . . . . . . . . . . . . . . . . . Pick Up 165 | 12 15 7 5 37 17 1 1 17 1 2 13 7 7 . 3 11 9 . Fast Attach 47 | . 5 . . 2 5 . . 4 1 . 3 5 2 . 1 8 10 1 Attach 90 | 7 2 . 8 12 8 . 1 8 3 2 8 5 6 . 2 10 3 5 Detach 8 | 1 . . . . . . . . 1 . 1 . 1 . . . 3 1 Swap 147 | . 4 3 4 9 35 6 10 22 . 6 4 9 4 1 8 9 11 2 Drop 137 | . 13 2 1 28 21 3 . 21 1 . 8 10 4 . 3 10 11 1 Fire 383 | . 40 10 33 46 55 2 5 46 3 20 24 44 17 6 27 . . 5 Melee 110 | . . . . . . . . . . . . . . . 4 49 26 31 Ram 1 | . . . . . . . . . . . . 1 . . . . . . Kick 15 | . . . . 4 9 . . 2 . . . . . . . . . . Crush . | . . . . . . . . . . . . . . . . . . . Escape Stasis 6 | . . . . . 5 . . . . . . . . . . . . 1 Rewire 127 | . . . . . 2 . . . . . . 124 . 1 . . . . Trap . | . . . . . . . . . . . . . . . . . . . Miscellaneous . | . . . . . . . . . . . . . . . . . . . Route ------- -11/Scrapyard -10/Materials -10/Mines (discovered 2 exits: [*Mat] / [*Exi]) -9/Materials -8/Materials -7/Factory (discovered 2 exits: *Low x2) -7/Lower Caves -7/Lower Caves (discovered 2 exits: *Fac / *Zio) -6/Factory (discovered 2 exits: *Fac / *Low) -5/Factory -5/Waste -5/Factory -5/Extension (discovered 3 exits: *Fac x2 / *Cet) -5/Cetus (discovered 3 exits: *Fac x2 / *Arc) -5/Archives -5/Hub_04(d) -4/Factory -3/Research (discovered 3 exits: *Res x2 / [*Tes]) -2/Research History --------- Turn | Location | Event 2 | -11/Scrapyard | Met Revision 17 7 | -11/Scrapyard | Discovered new exit (range 15) 69 | -11/Scrapyard | Entered Materials 316 | -10/Materials | Build established: Mutant 570 | -10/Materials | Discovered new exit (range 16) 879 | -10/Materials | Entered Mines 883 | -10/Mines | Core integrity fell below 50% 1053 | -10/Mines | Learned location of Storage (-9) 1327 | -10/Mines | Learned Materials garrison access intel 1402 | -10/Mines | Deemed a non-threat by the Exiles lab entrance 1403 | -10/Mines | Discovered new exit (range 5) 1823 | -10/Mines | Discovered new exit (range 13) 1832 | -10/Mines | Received a Rocket Launcher from a helpful Derelict 1851 | -10/Mines | Entered Materials 1851 | -9/Materials | Evolved 2 slots: Propulsion x2 2031 | -9/Materials | Lost 5 parts (3n2w) 2275 | -9/Materials | Discovered new exit (range 10) 2348 | -9/Materials | Entered another Materials area 2348 | -8/Materials | Evolved 2 slots: Utility x1, Weapon x1 2349 | -8/Materials | Loaded intel: 1 garrison access location 2662 | -8/Materials | Build established: Scavenger-Gunner 2811 | -8/Materials | Repaired Corrupted Beam Rifle 3142 | -8/Materials | Lost 7 parts (3n2u2w) 3586 | -8/Materials | Discovered new exit (range 8) 3598 | -8/Materials | Entered Factory 3598 | -7/Factory | Evolved 2 slots: Utility x2 3759 | -7/Factory | Build established: Gunner 3988 | -7/Factory | Fabricated L-31 Rogue (x3) 4170 | -7/Factory | P-60 Hacker assimilated allied Rogue 4a 4788 | -7/Factory | Identified exit to Lower Caves 5254 | -7/Factory | Entered Lower Caves 5352 | -7/Lower Caves | Entered a destroyed Warlord outpost 5439 | -7/Lower Caves | Build established: Tank 5878 | -7/Lower Caves | Encountered a Warlord checkpoint 5980 | -7/Lower Caves | Discovered new exit (range 12) 6001 | -7/Lower Caves | Entered another Lower Caves area 6345 | -7/Lower Caves | Build established: Gunner 6406 | -7/Lower Caves | Discovered new exit (range 11) 6426 | -7/Lower Caves | Identified exit to Zion 6468 | -7/Lower Caves | Encountered a Warlord checkpoint 6637 | -7/Lower Caves | Discovered new exit (range 10) 6651 | -7/Lower Caves | Identified exit to Factory 6652 | -7/Lower Caves | Entered Factory 6652 | -6/Factory | Evolved 2 slots: Utility x2 6999 | -6/Factory | Discovered new exit (range 15) 7017 | -6/Factory | Identified exit to Lower Caves 7037 | -6/Factory | Discovered new exit (range 14) 7054 | -6/Factory | Identified exit to Factory 7804 | -6/Factory | Build established: Mutant 8135 | -6/Factory | Entered another Factory area 8135 | -5/Factory | Evolved 2 slots: Propulsion x1, Weapon x1 8136 | -5/Factory | Identified exit to Upper Caves 8179 | -5/Factory | Build established: Skirmisher 8521 | -5/Factory | Sucked down chute 8521 | -5/Factory | Entered Waste 8536 | -5/Waste | EMP discharged 8547 | -5/Waste | Spotted C-40 Crusher 8568 | -5/Waste | Destroyed C-40 Crusher 8572 | -5/Waste | Spotted C-40 Crusher 8576 | -5/Waste | Spotted C-40 Crusher 8579 | -5/Waste | Spotted C-40 Crusher 8585 | -5/Waste | Spotted C-40 Crusher 8587 | -5/Waste | Destroyed C-40 Crusher 8593 | -5/Waste | Spotted C-40 Crusher 8596 | -5/Waste | Destroyed C-40 Crusher 8599 | -5/Waste | Destroyed C-40 Crusher 8599 | -5/Waste | Destroyed C-40 Crusher 8617 | -5/Waste | Crushed by Compactor (1 part destroyed, 1 dropped) 8620 | -5/Waste | Crushed by Compactor (1 part destroyed, 1 dropped) 8621 | -5/Waste | Destroyed C-40 Crusher 8636 | -5/Waste | EMP discharged 8636 | -5/Waste | System corruption reached 10% 8651 | -5/Waste | Lost 3 parts (1p1n1w) 8674 | -5/Waste | Discovered new exit (range 10) 8684 | -5/Waste | Identified exit to Factory 8685 | -5/Waste | Entered Factory 9148 | -5/Factory | Discovered new exit (range 6) 9152 | -5/Factory | Identified exit to Extension 9157 | -5/Factory | Entered Extension 9560 | -5/Extension | Rescued a captive Derelict 9571 | -5/Extension | Identified exit to Cetus 9585 | -5/Extension | Rescued a captive Derelict 9586 | -5/Extension | Rescued a captive Derelict 9652 | -5/Extension | Build established: Commander-Skirmisher 9674 | -5/Extension | Spotted B-75 Beast 9714 | -5/Extension | Destroyed B-75 Beast 9716 | -5/Extension | Spotted B-75 Beast 9734 | -5/Extension | Allies destroyed B-75 Beast 9754 | -5/Extension | Lost 4 allies 9754 | -5/Extension | Discovered new exit (range 3) 9756 | -5/Extension | Identified exit to Factory 9834 | -5/Extension | Rescued a captive Derelict 10213 | -5/Extension | Rescued a captive Derelict 10215 | -5/Extension | Rescued a captive Derelict 10269 | -5/Extension | Discovered exit to Factory (range 10) 10331 | -5/Extension | Entered Cetus 10331 | -5/Cetus | Accompanied by 13 allies 10349 | -5/Cetus | Spotted Cetus Guard 10349 | -5/Cetus | Spotted Cetus Guard 10351 | -5/Cetus | Spotted Cetus Guard 10352 | -5/Cetus | Spotted Cetus Guard 10380 | -5/Cetus | Allies destroyed Cetus Guard 10385 | -5/Cetus | Destroyed Cetus Guard 10389 | -5/Cetus | Allies destroyed Cetus Guard 10392 | -5/Cetus | Destroyed Cetus Guard 10415 | -5/Cetus | Lost 6 parts (1p3n1u1w) 10416 | -5/Cetus | Lost 9 allies 10466 | -5/Cetus | Discovered exit to Factory (range 15) 10712 | -5/Cetus | Discovered new exit (range 15) 10724 | -5/Cetus | Build established: Scavenger-Tank 10738 | -5/Cetus | Spotted Cetus Guard 10739 | -5/Cetus | Spotted Cetus Guard 10747 | -5/Cetus | Spotted Cetus Guard 10747 | -5/Cetus | Spotted Cetus Guard 10752 | -5/Cetus | Destroyed Cetus Guard 10763 | -5/Cetus | Destroyed Cetus Guard 10768 | -5/Cetus | Allies destroyed Cetus Guard 10769 | -5/Cetus | Destroyed Cetus Guard 10777 | -5/Cetus | Discovered exit to Factory (range 15) 10783 | -5/Cetus | Met Revision 17 10834 | -5/Cetus | Identified exit to Archives 10848 | -5/Cetus | Entered Archives 10848 | -5/Archives | Accompanied by 3 allies 10872 | -5/Archives | Met Zhirov 10878 | -5/Archives | Reinforcements dispatched to Archives 10889 | -5/Archives | Unable to access archive contents 10902 | -5/Archives | Discovered new exit (range 16) 10923 | -5/Archives | Reinforcements dispatched to Archives 10925 | -5/Archives | Zhirov warped through subspace 10941 | -5/Archives | Identified exit to Hub_04(d) 10942 | -5/Archives | Entered Hub_04(d) 10944 | -5/Hub_04(d) | Lost 3 allies 11065 | -5/Hub_04(d) | Garrison activated, responded to threat 11348 | -5/Hub_04(d) | Discovered exit to Factory (range 14) 11381 | -5/Hub_04(d) | Entered Factory 11381 | -4/Factory | Evolved 2 slots: Power x1, Utility x1 11398 | -4/Factory | Lost 3 parts (2n1w) 11399 | -4/Factory | Discovered new exit (range 11) 11410 | -4/Factory | Identified exit to Research 11606 | -4/Factory | Build established: Scavenger-Mutant 12060 | -4/Factory | Garrison activated, responded to threat 12097 | -4/Factory | Lost 5 parts (1p2n1u1w) 12184 | -4/Factory | Lost 3 parts (1n2u) 12315 | -4/Factory | System corruption reached 10% 12320 | -4/Factory | Entered Research 12320 | -3/Research | Evolved 2 slots: Utility x2 12520 | -3/Research | Revision forces began assault on 0b10 12595 | -3/Research | Met up with Revision 17++ 12885 | -3/Research | Discovered new exit (range 11) 12896 | -3/Research | Identified exit to Research 13020 | -3/Research | Research terminal network offline 13128 | -3/Research | Build established: Scavenger-Gladiator 13129 | -3/Research | Discovered exit to Research (range 147) 13191 | -3/Research | Discovered new exit (range 132) 13243 | -3/Research | Spotted Striker 13383 | -3/Research | Entered another Research area 13383 | -2/Research | Evolved 2 slots: Power x1, Utility x1 13560 | -2/Research | Spotted B-90 Cyclops 13646 | -2/Research | Spotted B-90 Cyclops 13857 | -2/Research | System corruption reached 10% 13887 | -2/Research | Core integrity fell below 50% 13900 | -2/Research | Core integrity fell below 20% 13901 | -2/Research | Destroyed by B-90 Cyclops with Nova Cannon Last Messages --------------- 13889_ Acquired Micro-nuke Launcher. 13890_ Critical hit (Meltdown: +420). [Achievement: Well Done] 13891_ Overheating: System interference. 13891_ Adv. Melee Analysis Suite temporarily disabled. 13891_ Adv. Signal Interpreter temporarily disabled. 13891_ Critical hit (Meltdown: +410). 13891_ Micro-nuke Launcher destroyed. 13892_ Overheating: Matter decay (-57). 13892_ System corrupted: Micro-nuke Launcher failed to launch. 13894_ Adv. Melee Analysis Suite destroyed. 13896_ The unstable cave ceiling collapses. 13896_ Micro-nuke Launcher destroyed. 13897_ System Shield destroyed. 13900_ Overheating: Core damaged (-246). 13901_ U-05 Engineer builds a Wall. [Achievement: Back For More] Map ----- +----------------------------------------------------+ | #??# [#?????# # """" # # #??? | | #??# #?????# + """" # # #??? | | ???# #?????# # # #? #??? | | ???##+#### #?????# # # #?#########??? | | ##### ##### ###### ########### #????????????? | | #?????????# #????????????? | | #?????????# #????????????? | | ################### #?????????# #????????????? | | ??????????????????# #?????????# #????????????? | | #?????????????????# ########### ########?????? | | #????????????????# T #?????? | | #????????????????# #?????? | | #???????####?????# #?????? | | #???????? ????# #?????? | | #???????? ????# """ """ ### #?????? | | #????????" ???# """" """" #?# #?????? | | #????????" ???# """" """" #?# #?????? | | #????????" ??# """ """ #?######?????? | | #????????? ??+ #????????????? | | ?????????? ?# #????????????? | | ?????????" """ # #????????????? | | ?????????" """ #u##################????????????? | | ???????""" """ #######???????????????????? | | ????# ! #???????????????????? | | ????# BB # [ #???????????????????? | | ########## %BB * @ #???????????????????? | | ! %!!!! #???????????????????? | | ########## !|!% #???????????????????? | | ??????????? #g!g #???????????????????? | | ???????????## #######?########???????????????????? | | ?????????????????????????????????????????????????? | | ?????????????????????????????????????????????????? | | ?????????????????????????????????????????????????? | | ?????????????????????????????????????????????????? | | | | | | | | | | | | | | | | | | | | | | | | | | | | | | | | | +----------------------------------------------------+ Best States ------------- Heat Dissipation 83 Energy Generation 41 Energy Capacity 490 Matter Stores 300 Matter Capacity 550 Sight Range 16 Robot Scan Range 18 Terrain Scan Range 16 Terrain Scan Density 210 Cloak Strength 3 Armor Coverage 900 Resistance: TH 25 Resistance: EM 15 Phase Shifting 5 Evasion (%) 70 Targeting Accuracy 16 Melee Accuracy 24 Recoil Reduction 4 Offensive Hacking 12 Defensive Hacking 10 Item Schematics ----------------- Imp. Arc Projector | -7/Factory | Hacked Robot Schematics ------------------ None Fabricated ------------ L-31 Rogue | x3 | -7/Factory | Preloaded Repaired ---------- Beam Rifle | 84% | -8/Materials | Corrupted Studied --------- None Alien Tech Used ----------------- None Achievements -------------- All Kinds Of Bad News Back For More Hammer Time Resistances Are Futile Revolutionary Research Well Done You Again Challenges ------------ None Game ------ Seed JammingGravjetGutpuncher Manual? 0 Play Time 03:30:06 Cumulative 68.4 hours Start 2026.02.15 @ 15:11:10 End 2026.02.16 @ 14:47:54 Sessions 5 Manual Loads 0 Difficulty Rogue Special Mode None Game No. 50 Rogue 50 Adventurer 0 Explorer 0 Win Type - Total 1 Types 1/0/0/0/0/0/0/0/0/0 Lore% 42 Gallery% 40 Achievement% 29 Wizard Run 0 Options --------- Layout 1 ASCII 1 Keyboard 0 Movement Mouse Keybinds 0 Fullscreen 1 Font 32/SmallcapsGlow Map View 50x35 Zoom Use 0% Tactical HUD 1 Map Filters NONE Filters NONE Steam 1 RUN: d0c64924-6945-4c71-aec6-926a12b4e6fc